[Event "XI Paracin Festival 2018"]
[Site "Paracin"]
[Date "2018.07.12"]
[Round "8"]
[White "Yordanov, Lachezar"]
[Black "Peng, Shunkai"]
[Result "1/2-1/2"]
[ECO "A40"]
[WhiteElo "2290"]
[BlackElo "2390"]
[Annotator "NA"]
[PlyCount "66"]
[EventDate "2018.07.06"]
[EventType "swiss"]
[EventCountry "SRB"]
[SourceTitle "playchess.com"]
[Source "ChessBase"]
[SourceQuality "1"]
[TimeControl "5400+30"]

1. d4 {[%emt 0:01:15]} Nf6 {[%emt 0:00:07]} 2. c4 {[%emt 0:00:06]} e6 {[%emt 0:00:24]} 3. g3 {[%emt 0:00:08]} d5 {[%emt 0:01:46]} 4. Nf3 {[%emt 0:00:06]} Bb4+ {[%emt 0:02:16]} 5. Bd2 {[%emt 0:00:17]} Bd6 {[%emt 0:01:01]} 6. Nc3 {[%emt 0:00:15]} c6 {[%emt 0:01:01]} 7. Qc2 {[%emt 0:00:07]} Nbd7 {[%emt 0:07:46]} 8. e4 {[%emt 0:03:15]} dxe4 {[%emt 0:05:26]} 9. Nxe4 {[%emt 0:00:08]} Bc7 {[%emt 0:00:47]} 10. Bd3 {[%emt 0:07:03]} O-O {[%emt 0:09:15]} 11. Nxf6+ {[%emt 0:02:28]} Nxf6 {[%emt 0:00:27]} 12. O-O {[%emt 0:00:45]} h6 {[%emt 0:03:04]} 13. Rfd1 {[%emt 0:17:19]} a5 {[%emt 0:03:21]} 14. Rac1 {[%emt 0:03:05]} b6 {[%emt 0:09:06]} 15. Be4 {[%emt 0:02:16]} Bb7 {[%emt 0:06:56]} 16. c5 {[%emt 0:01:27]} b5 {[%emt 0:04:41]} 17. a3 {[%emt 0:02:41]} Qe7 {[%emt 0:06:44]} 18. Ne5 {[%emt 0:02:23]} Bxe5 {[%emt 0:04:44]} 19. dxe5 {[%emt 0:01:14]} Nxe4 {[%emt 0:00:07]} 20. Qxe4 {[%emt 0:00:05]} Rfd8 {[%emt 0:00:07]} 21. Be3 {[%emt 0:01:32]} Rd5 {[%emt 0:00:36]} 22. Rxd5 {[%emt 0:01:16]} exd5 {[%emt 0:00:14]} 23. Qf4 {[%emt 0:01:12]} Re8 {[%emt 0:05:08]} 24. Bd4 {[%emt 0:00:56]} Bc8 {[%emt 0:00:07]} 25. h4 {[%emt 0:00:28]} Qe6 {[%emt 0:00:42]} 26. Bc3 {[%emt 0:06:15]} a4 {[%emt 0:01:02]} 27. Bd4 {[%emt 0:02:02]} Qg6 {[%emt 0:12:07]} 28. f3 {[%emt 0:05:28]} Be6 {[%emt 0:02:37]} 29. Kf2 {[%emt 0:00:25]} Kf8 {[%emt 0:00:22]} 30. Qd2 {[%emt 0:01:31]} Ke7 {[%emt 0:02:31]} 31. Rh1 {[%emt 0:01:26]} h5 {[%emt 0:00:46]} 32. Qg5+ {[%emt 0:02:21]} Qxg5 {[%emt 0:00:16]} 33. hxg5 {[%emt 0:00:01]} g6 {[%emt 0:00:13]} 1/2-1/2

[Event "XI Paracin Festival 2018"]
[Site "Paracin"]
[Date "2018.07.12"]
[Round "8"]
[White "Gomes, Mary Ann"]
[Black "Radovanovic, Mihajlo"]
[Result "1-0"]
[ECO "A04"]
[WhiteElo "2284"]
[BlackElo "2402"]
[Annotator "NA"]
[PlyCount "86"]
[EventDate "2018.07.06"]
[EventType "swiss"]
[EventCountry "SRB"]
[SourceTitle "playchess.com"]
[Source "ChessBase"]
[SourceQuality "1"]
[TimeControl "5400+30"]

1. Nf3 {[%emt 0:00:00]} g6 {[%emt 0:00:00]} 2. g3 {[%emt 0:00:00]} Bg7 {[%emt 0:00:00]} 3. Bg2 {[%emt 0:00:00]} e5 {[%emt 0:01:40]} 4. e4 {[%emt 0:00:00]} c5 {[%emt 0:00:16]} 5. Nc3 {[%emt 0:00:38]} Ne7 {[%emt 0:00:33]} 6. d3 {[%emt 0:00:21]} Nbc6 {[%emt 0:01:40]} 7. Be3 {[%emt 0:00:42]} d6 {[%emt 0:00:21]} 8. Qd2 {[%emt 0:00:07]} Nd4 {[%emt 0:01:40]} 9. h3 {[%emt 0:02:51]} O-O {[%emt 0:04:59]} 10. g4 {[%emt 0:07:33]} Bd7 {[%emt 0:09:46]} 11. Nh2 {[%emt 0:09:54]} Bc6 {[%emt 0:04:58]} 12. Nd5 {[%emt 0:02:38]} Bxd5 {[%emt 0:01:58]} 13. exd5 {[%emt 0:00:11]} f5 {[%emt 0:00:10]} 14. Bg5 {[%emt 0:01:43]} Qe8 {[%emt 0:15:27]} 15. c3 {[%emt 0:02:09]} Nb5 {[%emt 0:00:05]} 16. h4 {[%emt 0:10:10]} e4 {[%emt 0:04:09]} 17. dxe4 {[%emt 0:00:55]} fxe4 {[%emt 0:00:14]} 18. O-O {[%emt 0:01:04]} Qf7 {[%emt 0:02:40]} 19. Bxe4 {[%emt 0:04:40]} Rae8 {[%emt 0:00:10]} 20. Rae1 {[%emt 0:07:42]} Nc7 {[%emt 0:00:50]} 21. c4 {[%emt 0:00:05]} b5 {[%emt 0:00:58]} 22. b3 {[%emt 0:00:06]} Nc8 {[%emt 0:01:33]} 23. Kg2 {[%emt 0:17:58]} bxc4 {[%emt 0:04:05]} 24. bxc4 {[%emt 0:00:07]} Nb6 {[%emt 0:00:05]} 25. Qc2 {[%emt 0:05:53]} Kh8 {[%emt 0:06:38]} 26. f3 {[%emt 0:10:18]} Rb8 {[%emt 0:02:53]} 27. Rb1 {[%emt 0:02:57]} Qe8 {[%emt 0:07:41]} 28. Rfe1 {[%emt 0:01:06]} Be5 {[%emt 0:04:29]} 29. Bh6 {[%emt 0:02:07]} Qd8 {[%emt 0:00:49]} 30. Kh3 {[%emt 0:04:26]} Rf7 {[%emt 0:01:17]} 31. Bg5 {[%emt 0:00:53]} Qd7 {[%emt 0:00:52]} 32. Rf1 {[%emt 0:01:17]} Rbf8 {[%emt 0:00:15]} 33. Bh6 {[%emt 0:00:16]} Re8 {[%emt 0:00:06]} 34. f4 {[%emt 0:00:26]} Bd4 {[%emt 0:00:33]} 35. Rfe1 {[%emt 0:00:53]} Qa4 {[%emt 0:07:38]} 36. Qxa4 {[%emt 0:02:02]} Nxa4 {[%emt 0:00:04]} 37. Bc2 {[%emt 0:01:49]} Nb2 {[%emt 0:00:57]} 38. Rxe8+ {[%emt 0:00:53]} Nxe8 {[%emt 0:00:01]} 39. Nf3 {[%emt 0:01:14]} Bc3 {[%emt 0:01:35]} 40. Bf5 {[%emt 0:00:42]} Ng7 {[%emt 0:02:02]} 41. Ng5 {[%emt 0:00:19]} Re7 {[%emt 0:00:15]} 42. Be6 {[%emt 0:00:41]} Nxe6 {[%emt 0:01:24]} 43. Nxe6 {[%emt 0:00:43]} Re8 {[%emt 0:01:37]} 1-0

[Event "XI Paracin Festival 2018"]
[Site "Paracin"]
[Date "2018.07.12"]
[Round "8"]
[White "Colovic, Dusan"]
[Black "Wadsworth, Matthew J"]
[Result "1-0"]
[ECO "A45"]
[WhiteElo "2279"]
[BlackElo "2377"]
[Annotator "NA"]
[PlyCount "119"]
[EventDate "2018.07.06"]
[EventType "swiss"]
[EventCountry "SRB"]
[SourceTitle "playchess.com"]
[Source "ChessBase"]
[SourceQuality "1"]
[TimeControl "5400+30"]

1. d4 {[%emt 0:00:00]} Nf6 {[%emt 0:00:54]} 2. Bf4 {[%emt 0:00:00]} c5 {[%emt 0:01:23]} 3. e3 {[%emt 0:00:46]} b6 {[%emt 0:02:32]} 4. c3 {[%emt 0:00:21]} Bb7 {[%emt 0:02:04]} 5. Nd2 {[%emt 0:00:14]} d6 {[%emt 0:02:21]} 6. Ngf3 {[%emt 0:01:30]} Nbd7 {[%emt 0:01:38]} 7. Bc4 {[%emt 0:06:35]} e6 {[%emt 0:05:20]} 8. O-O {[%emt 0:02:14]} Be7 {[%emt 0:01:52]} 9. Qe2 {[%emt 0:01:49]} a6 {[%emt 0:02:29]} 10. e4 {[%emt 0:02:32]} cxd4 {[%emt 0:12:42]} 11. cxd4 {[%emt 0:02:33]} d5 {[%emt 0:00:05]} 12. Bd3 {[%emt 0:00:53]} dxe4 {[%emt 0:01:08]} 13. Nxe4 {[%emt 0:00:08]} O-O {[%emt 0:03:35]} 14. Rac1 {[%emt 0:01:06]} Nxe4 {[%emt 0:05:28]} 15. Bxe4 {[%emt 0:05:44]} Bxe4 {[%emt 0:00:07]} 16. Qxe4 {[%emt 0:00:03]} Nf6 {[%emt 0:01:14]} 17. Qb7 {[%emt 0:05:09]} Nd5 {[%emt 0:04:52]} 18. Bg3 {[%emt 0:03:23]} Bf6 {[%emt 0:04:24]} 19. a3 {[%emt 0:04:20]} Qe7 {[%emt 0:05:34]} 20. Qxe7 {[%emt 0:07:54]} Bxe7 {[%emt 0:01:29]} 21. Rc6 {[%emt 0:01:33]} Rfd8 {[%emt 0:06:36]} 22. Rfc1 {[%emt 0:00:14]} h6 {[%emt 0:00:24]} 23. Kf1 {[%emt 0:00:52]} b5 {[%emt 0:02:06]} 24. Ke2 {[%emt 0:00:55]} Bf6 {[%emt 0:04:16]} 25. Bd6 {[%emt 0:02:54]} Be7 {[%emt 0:06:08]} 26. Bc7 {[%emt 0:04:30]} Re8 {[%emt 0:03:11]} 27. g3 {[%emt 0:00:38]} a5 {[%emt 0:06:02]} 28. Ne5 {[%emt 0:06:32]} a4 {[%emt 0:00:42]} 29. Bd6 {[%emt 0:01:18]} Bf6 {[%emt 0:02:54]} 30. f4 {[%emt 0:04:04]} Red8 {[%emt 0:01:04]} 31. Kd3 {[%emt 0:05:19]} h5 {[%emt 0:00:48]} 32. Ke4 {[%emt 0:02:44]} Ne7 {[%emt 0:06:37]} 33. Bxe7 {[%emt 0:01:17]} Bxe7 {[%emt 0:00:02]} 34. Rb6 {[%emt 0:00:15]} Rd5 {[%emt 0:01:45]} 35. Rb7 {[%emt 0:00:09]} Bf6 {[%emt 0:00:34]} 36. Rc5 {[%emt 0:00:06]} Rad8 {[%emt 0:01:11]} 37. Rxd5 {[%emt 0:03:59]} Rxd5 {[%emt 0:00:37]} 38. Rb8+ {[%emt 0:00:55]} Kh7 {[%emt 0:00:09]} 39. Rc8 {[%emt 0:00:13]} Bxe5 {[%emt 0:02:00]} 40. fxe5 {[%emt 0:00:06]} Rd7 {[%emt 0:00:12]} 41. Rb8 {[%emt 0:00:55]} Rd5 {[%emt 0:00:08]} 42. Rb7 {[%emt 0:00:14]} Kg6 {[%emt 0:00:08]} 43. h4 {[%emt 0:00:13]} f6 {[%emt 0:01:25]} 44. Re7 {[%emt 0:00:22]} b4 {[%emt 0:00:19]} 45. Rxe6 {[%emt 0:00:55]} Rb5 {[%emt 0:00:39]} 46. d5 {[%emt 0:03:34]} bxa3 {[%emt 0:00:48]} 47. bxa3 {[%emt 0:00:05]} Rb1 {[%emt 0:00:39]} 48. d6 {[%emt 0:01:15]} Re1+ {[%emt 0:00:29]} 49. Kd5 {[%emt 0:02:15]} Kf5 {[%emt 0:00:11]} 50. Re8 {[%emt 0:00:05]} Rd1+ {[%emt 0:00:50]} 51. Kc6 {[%emt 0:01:36]} Rc1+ {[%emt 0:00:02]} 52. Kb5 {[%emt 0:01:59]} Rd1 {[%emt 0:00:53]} 53. exf6 {[%emt 0:00:45]} gxf6 {[%emt 0:00:20]} 54. Kc6 {[%emt 0:01:08]} Rc1+ {[%emt 0:00:27]} 55. Kb7 {[%emt 0:00:38]} Rd1 {[%emt 0:00:28]} 56. Kc7 {[%emt 0:00:26]} Rc1+ {[%emt 0:00:05]} 57. Kd8 {[%emt 0:00:05]} Rc3 {[%emt 0:00:21]} 58. d7 {[%emt 0:00:19]} Rxa3 {[%emt 0:00:40]} 59. Ke7 {[%emt 0:00:05]} Re3+ {[%emt 0:00:06]} 60. Kf7 {[%emt 0:00:13]} 1-0

[Event "XI Paracin Festival 2018"]
[Site "Paracin"]
[Date "2018.07.12"]
[Round "8"]
[White "Popovic, Milan S"]
[Black "Sylvan, Jacob"]
[Result "1/2-1/2"]
[ECO "A48"]
[WhiteElo "2264"]
[BlackElo "2332"]
[Annotator "NA"]
[PlyCount "42"]
[EventDate "2018.07.06"]
[EventType "swiss"]
[EventCountry "SRB"]
[SourceTitle "playchess.com"]
[Source "ChessBase"]
[SourceQuality "1"]
[TimeControl "5400+30"]

1. d4 {[%emt 0:00:00]} Nf6 {[%emt 0:00:00]} 2. Nf3 {[%emt 0:00:00]} g6 {[%emt 0:00:05]} 3. Bg5 {[%emt 0:00:00]} Bg7 {[%emt 0:00:03]} 4. Nbd2 {[%emt 0:00:00]} O-O {[%emt 0:00:25]} 5. c3 {[%emt 0:00:00]} d6 {[%emt 0:00:13]} 6. e4 {[%emt 0:00:00]} c5 {[%emt 0:00:08]} 7. dxc5 {[%emt 0:00:00]} dxc5 {[%emt 0:00:05]} 8. Be2 {[%emt 0:00:10]} Nc6 {[%emt 0:00:13]} 9. h3 {[%emt 0:00:26]} Qc7 {[%emt 0:01:43]} 10. O-O {[%emt 0:00:28]} h6 {[%emt 0:02:10]} 11. Be3 {[%emt 0:00:08]} b6 {[%emt 0:00:20]} 12. Qc2 {[%emt 0:11:08]} Bb7 {[%emt 0:02:21]} 13. a4 {[%emt 0:03:51]} Rfd8 {[%emt 0:05:26]} 14. Rac1 {[%emt 0:01:35]} Rac8 {[%emt 0:01:12]} 15. Qb1 {[%emt 0:01:58]} Ne5 {[%emt 0:10:01]} 16. b4 {[%emt 0:23:58]} Nxf3+ {[%emt 0:02:26]} 17. Bxf3 {[%emt 0:00:11]} cxb4 {[%emt 0:01:15]} 18. cxb4 {[%emt 0:00:07]} Qe5 {[%emt 0:00:10]} 19. b5 {[%emt 0:18:42]} Ba8 {[%emt 0:09:51]} 20. Qb4 {[%emt 0:11:11]} Nd7 {[%emt 0:18:18]} 21. Nb3 {[%emt 0:15:23]} Bb7 {[%emt 0:03:28]} 1/2-1/2

[Event "XI Paracin Festival 2018"]
[Site "Paracin"]
[Date "2018.07.12"]
[Round "8"]
[White "Ivic, Matija"]
[Black "Tomic, Aleksandar"]
[Result "0-1"]
[ECO "E11"]
[WhiteElo "2245"]
[BlackElo "2347"]
[Annotator "NA"]
[PlyCount "50"]
[EventDate "2018.07.06"]
[EventType "swiss"]
[EventCountry "SRB"]
[SourceTitle "playchess.com"]
[Source "ChessBase"]
[SourceQuality "1"]
[TimeControl "5400+30"]

1. d4 {[%emt 0:00:00]} Nf6 {[%emt 0:04:50]} 2. Nf3 {[%emt 0:00:00]} e6 {[%emt 0:00:30]} 3. c4 {[%emt 0:00:57]} Bb4+ {[%emt 0:02:17]} 4. Bd2 {[%emt 0:00:15]} a5 {[%emt 0:00:24]} 5. g3 c5 {[%emt 0:00:12]} 6. Nc3 {[%emt 0:03:25]} cxd4 {[%emt 0:03:53]} 7. Nxd4 {[%emt 0:00:42]} Nc6 {[%emt 0:01:01]} 8. Nc2 {[%emt 0:02:26]} d5 {[%emt 0:05:24]} 9. cxd5 {[%emt 0:01:01]} exd5 {[%emt 0:00:28]} 10. Bg2 {[%emt 0:00:57]} O-O {[%emt 0:02:21]} 11. O-O {[%emt 0:00:26]} h6 {[%emt 0:01:41]} 12. Bf4 {[%emt 0:02:30]} Be6 {[%emt 0:07:16]} 13. Nxb4 {[%emt 0:03:49]} axb4 {[%emt 0:00:42]} 14. Nb5 {[%emt 0:00:12]} Qb6 {[%emt 0:02:30]} 15. a4 {[%emt 0:10:16]} bxa3 {[%emt 0:01:04]} 16. Nc7 {[%emt 0:00:17]} Qxb2 {[%emt 0:06:36]} 17. Rb1 {[%emt 0:02:50]} Qc3 {[%emt 0:01:21]} 18. Nxa8 {[%emt 0:00:52]} Rxa8 {[%emt 0:01:48]} 19. Rb3 {[%emt 0:00:59]} Qc4 {[%emt 0:03:06]} 20. Rxb7 {[%emt 0:01:02]} a2 {[%emt 0:02:06]} 21. Qa1 {[%emt 0:00:09]} Nd4 {[%emt 0:01:55]} 22. Rb8+ {[%emt 0:05:34]} Rxb8 {[%emt 0:01:15]} 23. Bxb8 {[%emt 0:00:02]} Nxe2+ {[%emt 0:01:51]} 24. Kh1 {[%emt 0:00:05]} d4 {[%emt 0:00:31]} 25. Qb2 {[%emt 0:01:04]} Nd5 {[%emt 0:03:22]} 0-1

[Event "XI Paracin Festival 2018"]
[Site "Paracin"]
[Date "2018.07.12"]
[Round "8"]
[White "Ninov, Dayan"]
[Black "Pantelic, Sasa"]
[Result "1-0"]
[ECO "B38"]
[WhiteElo "2229"]
[BlackElo "2316"]
[Annotator "NA"]
[PlyCount "75"]
[EventDate "2018.07.06"]
[EventType "swiss"]
[EventCountry "SRB"]
[SourceTitle "playchess.com"]
[Source "ChessBase"]
[SourceQuality "1"]
[TimeControl "5400+30"]

1. e4 {[%emt 0:04:01]} c5 {[%emt 0:00:00]} 2. c4 {[%emt 0:01:04]} Nc6 {[%emt 0:00:06]} 3. Ne2 {[%emt 0:02:52]} g6 {[%emt 0:01:48]} 4. d4 {[%emt 0:00:48]} cxd4 {[%emt 0:01:50]} 5. Nxd4 {[%emt 0:00:04]} Bg7 {[%emt 0:00:35]} 6. Be3 {[%emt 0:00:02]} Nf6 {[%emt 0:05:03]} 7. Nc3 {[%emt 0:00:34]} O-O {[%emt 0:15:33]} 8. Be2 {[%emt 0:00:11]} d6 {[%emt 0:01:19]} 9. O-O {[%emt 0:00:10]} Bd7 {[%emt 0:00:14]} 10. Qd2 {[%emt 0:00:20]} Rc8 {[%emt 0:03:19]} 11. f3 {[%emt 0:00:21]} a6 {[%emt 0:00:33]} 12. Rfd1 {[%emt 0:02:46]} Re8 {[%emt 0:08:18]} 13. Rab1 {[%emt 0:05:42]} Ne5 {[%emt 0:09:19]} 14. b3 {[%emt 0:00:36]} Qc7 {[%emt 0:00:44]} 15. Rbc1 {[%emt 0:01:33]} Qa5 {[%emt 0:01:59]} 16. Bf1 {[%emt 0:01:25]} Nc6 {[%emt 0:02:31]} 17. a4 {[%emt 0:14:55]} Nxd4 {[%emt 0:05:40]} 18. Bxd4 {[%emt 0:02:04]} Be6 {[%emt 0:00:53]} 19. Qb2 {[%emt 0:14:43]} Nh5 {[%emt 0:15:00]} 20. Bxg7 {[%emt 0:03:33]} Nxg7 {[%emt 0:00:06]} 21. Kh1 {[%emt 0:00:51]} Qb4 {[%emt 0:03:45]} 22. Na2 {[%emt 0:08:16]} Qb6 {[%emt 0:02:33]} 23. Nc3 {[%emt 0:02:46]} Nh5 {[%emt 0:03:25]} 24. Re1 {[%emt 0:13:15]} Bxc4 {[%emt 0:05:31]} 25. Bxc4 {[%emt 0:01:24]} Rxc4 {[%emt 0:00:06]} 26. a5 {[%emt 0:04:29]} Qb4 {[%emt 0:00:10]} 27. Nd5 {[%emt 0:00:14]} Rxc1 {[%emt 0:00:13]} 28. Rxc1 {[%emt 0:00:03]} Qxa5 {[%emt 0:00:36]} 29. Nxe7+ {[%emt 0:00:22]} Kf8 {[%emt 0:01:56]} 30. Nd5 {[%emt 0:03:32]} Ng7 {[%emt 0:00:34]} 31. Nf6 {[%emt 0:00:38]} Rd8 {[%emt 0:02:26]} 32. Nxh7+ {[%emt 0:00:09]} Kg8 {[%emt 0:00:05]} 33. Nf6+ {[%emt 0:00:27]} Kf8 {[%emt 0:00:01]} 34. Nd5 {[%emt 0:01:13]} Qb5 {[%emt 0:04:08]} 35. Qf6 {[%emt 0:01:55]} Qe8 {[%emt 0:01:33]} 36. Qh4 {[%emt 0:03:45]} Nh5 {[%emt 0:00:13]} 37. g4 {[%emt 0:00:14]} Rc8 {[%emt 0:00:07]} 38. Qe7+ {[%emt 0:00:47]} 1-0

[Event "XI Paracin Festival 2018"]
[Site "Paracin"]
[Date "2018.07.12"]
[Round "8"]
[White "Parnali, S Dharia"]
[Black "Milosevic, Milos"]
[Result "0-1"]
[ECO "A45"]
[WhiteElo "2170"]
[BlackElo "2315"]
[Annotator "NA"]
[PlyCount "58"]
[EventDate "2018.07.06"]
[EventType "swiss"]
[EventCountry "SRB"]
[SourceTitle "playchess.com"]
[Source "ChessBase"]
[SourceQuality "1"]
[TimeControl "5400+30"]

1. d4 Nf6 2. g3 c5 3. d5 b5 4. Bg2 d6 5. Nd2 g6 6. e4 Nbd7 7. Ne2 Bg7 8. O-O O-O 9. a4 b4 10. h3 a5 11. Re1 Nb6 12. c4 bxc3 13. Nxc3 Ba6 14. Qc2 Rb8 15. Bf1 Bxf1 16. Nxf1 Qd7 17. Kg2 e6 18. dxe6 Qxe6 19. Bf4 Nh5 20. Bd2 Nc4 21. b3 Nxd2 22. Nxd2 Bd4 23. Nc4 f5 24. Rad1 f4 25. Nb5 fxg3 26. Nxd4 Nf4+ 27. Kf3 cxd4 28. fxg3 Qxh3 29. Rh1 Nh5+ 0-1

[Event "XI Paracin Festival 2018"]
[Site "Paracin"]
[Date "2018.07.12"]
[Round "8"]
[White "Uuriintuya, Uurtsaikh"]
[Black "Ikeda, Junta"]
[Result "1-0"]
[ECO "B56"]
[WhiteElo "2158"]
[BlackElo "2437"]
[Annotator "NA"]
[PlyCount "115"]
[EventDate "2018.07.06"]
[EventType "swiss"]
[EventCountry "SRB"]
[SourceTitle "playchess.com"]
[Source "ChessBase"]
[SourceQuality "1"]
[TimeControl "5400+30"]

1. e4 {[%emt 0:00:00]} c5 {[%emt 0:00:00]} 2. Nf3 {[%emt 0:00:00]} d6 {[%emt 0:00:12]} 3. d4 {[%emt 0:00:01]} cxd4 {[%emt 0:00:04]} 4. Nxd4 {[%emt 0:00:06]} Nf6 {[%emt 0:00:04]} 5. Nc3 {[%emt 0:00:05]} Bd7 {[%emt 0:00:04]} 6. Bg5 {[%emt 0:00:24]} e6 {[%emt 0:00:05]} 7. Ndb5 {[%emt 0:00:51]} Bc6 {[%emt 0:07:59]} 8. Bxf6 {[%emt 0:01:35]} gxf6 {[%emt 0:00:04]} 9. Qh5 {[%emt 0:00:13]} a6 {[%emt 0:00:04]} 10. Nd4 {[%emt 0:00:09]} Qb6 {[%emt 0:01:51]} 11. O-O-O {[%emt 0:09:57]} Qc5 {[%emt 0:00:14]} 12. Qh3 {[%emt 0:22:02]} Bd7 {[%emt 0:05:43]} 13. Be2 {[%emt 0:08:34]} Nc6 {[%emt 0:16:42]} 14. Nb3 {[%emt 0:02:21]} Qg5+ {[%emt 0:09:17]} 15. Kb1 {[%emt 0:02:01]} h5 {[%emt 0:24:37]} 16. g3 {[%emt 0:02:07]} h4 {[%emt 0:01:14]} 17. f4 {[%emt 0:01:01]} Qh6 {[%emt 0:00:12]} 18. Qg2 {[%emt 0:01:16]} Be7 {[%emt 0:09:28]} 19. Rhg1 {[%emt 0:07:53]} hxg3 {[%emt 0:16:34]} 20. hxg3 {[%emt 0:00:11]} Qf8 {[%emt 0:00:22]} 21. Qf2 {[%emt 0:03:33]} Bd8 {[%emt 0:01:12]} 22. Na4 {[%emt 0:04:55]} Bc7 {[%emt 0:01:06]} 23. Nb6 {[%emt 0:01:50]} Rd8 {[%emt 0:00:20]} 24. Nd2 {[%emt 0:11:51]} Ne7 {[%emt 0:01:35]} 25. Ndc4 {[%emt 0:01:47]} Bc6 {[%emt 0:00:39]} 26. Bf3 {[%emt 0:01:53]} f5 {[%emt 0:01:31]} 27. exf5 {[%emt 0:02:11]} Nxf5 {[%emt 0:01:22]} 28. Bxc6+ {[%emt 0:06:48]} bxc6 {[%emt 0:00:04]} 29. Na4 {[%emt 0:01:28]} d5 {[%emt 0:00:39]} 30. Qa7 {[%emt 0:01:42]} Qe7 {[%emt 0:01:05]} 31. Ne3 {[%emt 0:00:48]} Bd6 {[%emt 0:00:30]} 32. Qb6 {[%emt 0:00:25]} Nxe3 {[%emt 0:00:11]} 33. Qxe3 {[%emt 0:00:02]} Rb8 {[%emt 0:00:19]} 34. Qc3 {[%emt 0:01:51]} Kd7 {[%emt 0:00:04]} 35. Rh1 {[%emt 0:00:35]} Rxh1 {[%emt 0:01:04]} 36. Rxh1 {[%emt 0:00:01]} Rb4 {[%emt 0:00:08]} 37. b3 {[%emt 0:00:32]} Kc7 {[%emt 0:00:24]} 38. Rh7 {[%emt 0:01:07]} e5 {[%emt 0:00:55]} 39. a3 {[%emt 0:00:26]} Re4 {[%emt 0:00:41]} 40. Qa5+ {[%emt 0:00:22]} Kd7 {[%emt 0:00:13]} 41. f5 {[%emt 0:00:55]} Qf8 {[%emt 0:01:03]} 42. Qxa6 {[%emt 0:01:18]} Re1+ {[%emt 0:00:25]} 43. Ka2 {[%emt 0:00:04]} e4 {[%emt 0:00:31]} 44. Qb7+ {[%emt 0:01:55]} Bc7 {[%emt 0:00:25]} 45. Nb6+ {[%emt 0:00:49]} Kd6 {[%emt 0:00:06]} 46. Nc4+ {[%emt 0:00:51]} dxc4 {[%emt 0:00:22]} 47. Qb4+ {[%emt 0:00:12]} c5 {[%emt 0:00:13]} 48. Qxe1 {[%emt 0:00:17]} cxb3+ {[%emt 0:00:06]} 49. cxb3 {[%emt 0:00:09]} Qe8 {[%emt 0:01:21]} 50. Rh4 {[%emt 0:01:23]} Kd5 {[%emt 0:01:02]} 51. Qd2+ {[%emt 0:00:25]} Kc6 {[%emt 0:00:08]} 52. Rh6+ {[%emt 0:00:45]} Kb7 {[%emt 0:00:28]} 53. Qd5+ {[%emt 0:00:01]} Kc8 {[%emt 0:00:33]} 54. Qa8+ {[%emt 0:00:47]} Kd7 {[%emt 0:00:10]} 55. Qa4+ {[%emt 0:01:09]} Kd8 {[%emt 0:00:25]} 56. Qxe8+ {[%emt 0:00:31]} Kxe8 {[%emt 0:00:05]} 57. Rh4 {[%emt 0:00:03]} Bxg3 {[%emt 0:00:30]} 58. Rxe4+ {[%emt 0:00:06]} 1-0

[Event "XI Paracin Festival 2018"]
[Site "Paracin"]
[Date "2018.07.13"]
[Round "9"]
[White "Savic, Miodrag R"]
[Black "Avalyan, Artur"]
[Result "1/2-1/2"]
[ECO "C07"]
[WhiteElo "2541"]
[BlackElo "2315"]
[Annotator "RC"]
[PlyCount "46"]
[EventDate "2018.07.06"]
[EventType "swiss"]
[EventCountry "SRB"]
[SourceTitle "playchess.com"]
[Source "ChessBase"]
[SourceQuality "1"]
[TimeControl "5400+30"]

1. e4 {[%emt 0:00:00]} e6 {[%emt 0:00:00]} 2. d4 {[%emt 0:00:59]} d5 {[%emt 0:00:02]} 3. Nd2 {[%emt 0:01:16]} c5 {[%emt 0:00:16]} 4. dxc5 {[%emt 0:00:13]} Nf6 {[%emt 0:01:06]} 5. exd5 {[%emt 0:04:11]} Qxd5 {[%emt 0:00:30]} 6. Ngf3 {[%emt 0:00:43]} Qxc5 {[%emt 0:00:12]} 7. Bd3 {[%emt 0:01:27]} Nbd7 {[%emt 0:00:42]} 8. O-O {[%emt 0:01:23]} Qc7 {[%emt 0:00:18]} 9. Qe2 {[%emt 0:04:46]} Be7 {[%emt 0:02:02]} 10. Ne4 {[%emt 0:04:41]} b6 {[%emt 0:06:54]} 11. Neg5 {[%emt 0:04:02]} O-O {[%emt 0:15:10]} 12. b4 {[%emt 0:15:44]} Bb7 {[%emt 0:08:43]} 13. Bb2 {[%emt 0:14:04]} h6 {[%emt 0:10:22]} 14. Nxe6 {[%emt 0:15:50]} fxe6 {[%emt 0:00:33]} 15. Qxe6+ {[%emt 0:00:03]} Rf7 {[%emt 0:00:45]} 16. Bc4 {[%emt 0:02:23]} Raf8 {[%emt 0:01:52]} 17. Nh4 {[%emt 0:06:26]} b5 {[%emt 0:21:18]} 18. Bb3 {[%emt 0:01:10]} Bxb4 {[%emt 0:01:46]} 19. Ng6 {[%emt 0:00:56]} Nc5 {[%emt 0:01:19]} 20. Ne7+ {[%emt 0:03:00]} Kh8 {[%emt 0:01:16]} 21. Ng6+ {[%emt 0:00:03]} Kg8 {[%emt 0:01:07]} 22. Ne7+ {[%emt 0:02:14]} Kh8 {[%emt 0:00:58]} 23. Ng6+ {[%emt 0:00:41]} Kg8 {[%emt 0:01:03]} 1/2-1/2

[Event "XI Paracin Festival 2018"]
[Site "Paracin"]
[Date "2018.07.13"]
[Round "9"]
[White "Lorparizangeneh, Shahin"]
[Black "Tan, Justin"]
[Result "1/2-1/2"]
[ECO "A06"]
[WhiteElo "2493"]
[BlackElo "2481"]
[Annotator "RC"]
[PlyCount "42"]
[EventDate "2018.07.06"]
[EventType "swiss"]
[EventCountry "SRB"]
[SourceTitle "playchess.com"]
[Source "ChessBase"]
[SourceQuality "1"]
[TimeControl "5400+30"]

1. Nf3 {[%emt 0:00:39]} d5 {[%emt 0:00:58]} 2. g3 {[%emt 0:00:15]} c6 {[%emt 0:01:10]} 3. Bg2 {[%emt 0:00:08]} g6 {[%emt 0:00:40]} 4. O-O {[%emt 0:01:46]} Bg7 {[%emt 0:00:08]} 5. d4 {[%emt 0:02:32]} Nf6 {[%emt 0:02:38]} 6. c3 {[%emt 0:08:28]} O-O {[%emt 0:00:37]} 7. Re1 {[%emt 0:00:28]} Ne4 {[%emt 0:06:21]} 8. Bf4 {[%emt 0:03:38]} Qb6 {[%emt 0:05:02]} 9. Qb3 {[%emt 0:03:02]} Nd7 {[%emt 0:08:28]} 10. Nbd2 {[%emt 0:05:10]} Nxd2 {[%emt 0:02:07]} 11. Nxd2 {[%emt 0:17:52]} e5 {[%emt 0:05:39]} 12. dxe5 {[%emt 0:00:12]} Nxe5 {[%emt 0:06:56]} 13. Bxe5 {[%emt 0:00:52]} Bxe5 {[%emt 0:01:23]} 14. e4 {[%emt 0:00:06]} dxe4 {[%emt 0:02:07]} 15. Nc4 {[%emt 0:03:30]} Qxb3 {[%emt 0:00:33]} 16. axb3 {[%emt 0:00:02]} Bc7 {[%emt 0:00:29]} 17. Rxe4 {[%emt 0:07:04]} Be6 {[%emt 0:00:48]} 18. b4 {[%emt 0:05:06]} Rfd8 {[%emt 0:02:00]} 19. Bf1 {[%emt 0:01:37]} Kf8 {[%emt 0:06:44]} 20. Ree1 {[%emt 0:02:42]} a6 {[%emt 0:01:45]} 21. Rad1 {[%emt 0:03:57]} Rxd1 {[%emt 0:04:46]} 1/2-1/2